bitfinex-derivatives/quotes_ETHF0:USTF0_20260121
["timestamp","ask_amount","ask_price","bid_price","bid_amount"]
[1768975764921,1.0106,2992.9,2992.0,2.98634181]
[1768975768827,1.0106,2992.9,2992.1,2.468]
[1768975775127,1.0106,2992.9,2992.1,5.45434181]
[1768975781734,1.0106,2992.9,2992.1,2.468]
[1768975783034,1.17002422,2992.9,2992.1,2.468]
[1768975783538,0.15942422,2992.8,2991.8,3.34840761]
[1768975783738,0.15942422,2992.8,2991.9,2.48]
[1768975784735,0.15942422,2992.8,2991.8,0.00340761]
[1768975784931,0.15942422,2992.8,2991.9,2.48]
[1768975785332,0.15942422,2992.8,2991.8,0.00340761]
[1768975785638,0.15942422,2992.8,2991.9,2.48]
[1768975789142,0.15942422,2992.8,2991.8,0.00340761]
[1768975789337,0.15942422,2992.8,2991.9,2.48]
[1768975795439,0.15942422,2992.8,2991.8,0.00340761]
[1768975795644,0.15942422,2992.8,2991.9,2.48]
[1768975797235,1.0106,2992.9,2991.9,2.48]
[1768975799343,0.14702418,2992.8,2992.0,2.478]
[1768975800541,0.14702418,2992.8,2991.8,0.00340761]
[1768975800745,0.14702418,2992.8,2991.9,2.478]
[1768975801039,0.14702418,2992.8,2991.5,2.98634181]
[1768975801246,0.31426418,2992.8,2991.2,4.18087853]
[1768975801442,0.14702418,2992.4,2991.0,2.98634181]
[1768975801740,0.14702418,2992.4,2991.1,2.478]
[1768975802244,0.14702418,2992.4,2991.1,2.48086317]
[1768975806741,0.14702418,2992.8,2991.2,1.07341975]
[1768975810242,0.14702418,2992.8,2991.3,5.82]
[1768975811448,0.14702418,2992.8,2991.3,8.80634181]
[1768975812048,0.14702418,2992.8,2991.5,1.07341975]
[1768975812452,0.14702418,2992.8,2991.5,4.05976156]
[1768975812643,0.14702418,2993.2,2991.8,1.07341975]
[1768975815552,1.0092,2993.1,2991.8,1.07341975]
[1768975817748,1.0092,2993.1,2991.9,5.821]
[1768975818853,1.00768574,2993.1,2992.1,4.05976156]
[1768975819356,1.15623325,2993.1,2992.2,2.476]
[1768975819649,0.14854751,2993.0,2992.1,2.98634181]
[1768975819854,0.14854751,2993.0,2992.2,2.476]
[1768975821057,0.14854751,2993.0,2992.3,2.476]
[1768975821356,1.00768574,2993.1,2992.3,2.476]
[1768975823754,1.00768574,2993.1,2992.0,2.98634181]
[1768975823954,1.00768574,2993.1,2992.1,5.822]
[1768975826859,1.00768574,2993.1,2992.5,1.07311786]
[1768975827258,0.14854751,2993.5,2992.7,1.07311786]
[1768975827560,0.15111785,2993.9,2992.9,1.07311786]
[1768975827756,0.15111785,2993.9,2992.9,3.55111786]
[1768975829463,0.15111785,2993.9,2993.1,1.07311786]
[1768975830660,0.15111785,2993.9,2992.9,3.55111786]
[1768975830856,0.15111785,2993.9,2993.0,2.477]
[1768975831055,0.15111785,2993.9,2992.9,1.07311786]
[1768975831252,0.15111785,2993.9,2993.0,2.477]
[1768975832959,0.00257034,2993.9,2993.5,1.07311786]
[1768975833165,0.14854751,2994.3,2993.5,1.07311786]
[1768975834152,0.1515905,2994.3,2993.5,1.07569055]
[1768975836967,0.1515905,2994.3,2993.6,2.475]
[1768975837865,0.1515905,2994.3,2993.5,2.47757269]
[1768975839772,1.22166537,2993.8,2993.2,2.474]
[1768975840070,0.14854751,2993.8,2993.2,2.474]
[1768975840673,0.14854751,2993.8,2993.2,2.47714245]
[1768975847173,0.00304299,2994.3,2993.2,2.47714245]
[1768975847174,0.15306366,2994.2,2993.2,2.47714245]
[1768975847368,0.00304299,2994.3,2993.6,1.07311786]
[1768975848378,0.00304299,2994.3,2993.4,1.07311786]
[1768975850677,0.00304299,2994.3,2993.6,1.07311786]
[1768975855979,0.00304299,2994.3,2993.7,2.473]
[1768975859093,0.15306366,2994.6,2993.8,1.07311786]
[1768975859289,0.15306366,2995.0,2994.0,1.07311786]
[1768975860084,0.15695621,2995.0,2994.0,1.07311786]
[1768975861078,0.15695621,2995.0,2993.8,1.07311786]
[1768975862388,0.32407621,2995.0,2993.8,1.07311786]
[1768975866093,0.15306366,2994.9,2993.7,3.54611786]
[1768975866987,1.07311786,2994.4,2993.5,2.98634181]
[1768975867186,1.22618152,2994.2,2993.4,3.343]
[1768975867385,1.22618152,2994.2,2993.5,2.473]
[1768975867887,0.15306366,2994.2,2993.5,2.473]
[1768975868894,1.07311786,2994.4,2993.5,2.473]
[1768975869098,0.15306366,2994.5,2993.5,2.473]
[1768975870093,0.15306366,2994.3,2993.6,2.474]
[1768975870287,1.07311786,2994.2,2993.3,3.78534181]
[1768975870590,1.07311786,2993.8,2993.2,2.47714245]
[1768975870989,1.22618152,2993.8,2993.2,2.47714245]
[1768975873094,1.22618152,2993.8,2993.2,0.00314245]
[1768975874991,0.15306366,2993.7,2992.7,2.98634181]
[1768975875191,0.15306366,2993.7,2992.8,2.473]
[1768975875499,0.15306366,2993.7,2992.9,2.473]
[1768975876100,0.15306366,2993.7,2992.9,2.47662092]
[1768975878996,0.15306366,2993.7,2992.9,3.54973878]
[1768975880600,0.31617932,2994.1,2993.1,1.07311786]
[1768975882197,0.31617932,2994.1,2993.3,1.07311786]
[1768975883304,0.14900932,2994.1,2993.3,1.07311786]
[1768975883496,1.5536,2994.3,2993.3,1.07311786]
[1768975885107,1.70260932,2994.3,2993.3,1.07311786]
[1768975886103,0.14900932,2994.2,2993.3,1.07311786]
[1768975886304,0.14900932,2994.2,2993.3,3.54311786]
[1768975889003,0.14900932,2994.2,2993.3,2.47]
[1768975893298,1.5536,2994.3,2993.3,2.47]
[1768975896614,1.5536,2994.3,2993.5,2.98634181]
[1768975897107,1.5536,2994.3,2993.6,2.98634181]
[1768975897809,0.15290187,2995.0,2993.7,2.98634181]
[1768975899111,0.15290187,2995.0,2993.8,2.47]
[1768975899112,0.14900932,2994.9,2993.8,2.47]
[1768975900113,0.14900932,2994.9,2993.5,2.98634181]
[1768975900308,0.14900932,2994.9,2993.6,2.469]
[1768975903613,0.14900932,2993.9,2993.2,4.18087853]
[1768975903815,0.14900932,2993.9,2992.9,0.00362092]
[1768975905415,0.14900932,2993.9,2993.0,2.468]
[1768975907119,0.14431954,2994.3,2993.0,2.468]
[1768975907814,0.14431954,2994.3,2992.9,0.00362092]
[1768975917142,0.14431954,2994.3,2993.0,3.343]
[1768975918143,0.14431954,2994.3,2993.0,4.41555837]
[1768975918538,0.14431954,2994.3,2993.0,3.343]
[1768975921442,0.14431954,2994.3,2992.9,0.00362092]
[1768975921743,0.14431954,2994.2,2992.9,0.00362092]
[1768975922444,0.14431954,2993.8,2992.9,0.00362092]
[1768975923847,0.14431954,2993.8,2992.2,3.343]
[1768975924049,0.14431954,2993.8,2992.5,2.464]
[1768975924743,0.14431954,2993.8,2992.4,2.463]
[1768975924946,0.14431954,2993.8,2992.4,2.46559021]
[1768975934049,0.14431954,2993.8,2992.5,2.461]
[1768975934852,0.14431954,2993.8,2992.4,0.00259021]
[1768975935157,0.14431954,2993.8,2992.5,2.46]
[1768975940258,0.14431954,2993.8,2992.4,0.00259021]
[1768975940453,0.14431954,2993.8,2992.5,2.458]
[1768975940959,0.14431954,2993.8,2992.4,0.00259021]
[1768975941161,0.14431954,2993.8,2992.5,2.458]
[1768975943964,0.14395143,2993.7,2992.5,2.458]
[1768975945262,0.14395143,2993.6,2992.5,2.457]
[1768975945661,0.14395143,2993.6,2992.4,0.00259021]
[1768975945871,0.14395143,2993.6,2992.5,2.457]
[1768975947971,0.14395143,2993.6,2992.4,0.00259021]
[1768975948271,0.14395143,2993.6,2992.5,2.456]
[1768975950876,0.14395143,2993.6,2992.5,3.52904823]
[1768975953374,0.14395143,2993.6,2992.5,6.50679614]
[1768975958981,0.14395143,2993.6,2992.5,3.52904823]
[1768975960882,0.14395143,2993.6,2992.5,6.50679614]
[1768975968088,0.14395143,2993.6,2992.5,5.43374791]
[1768975969393,0.14395143,2993.6,2992.6,2.97774791]
[1768975969789,1.21699966,2993.6,2992.6,2.97774791]
[1768975970489,0.15000137,2993.5,2992.6,2.97774791]
[1768975972886,0.15000137,2993.5,2992.5,5.43374791]
[1768975978202,1.07304823,2993.0,2992.4,0.00259021]
[1768975978496,0.15000137,2992.9,2992.4,2.46559021]
[1768975978704,0.15000137,2992.9,2991.8,12.29443153]
[1768975978705,0.15000137,2992.7,2991.8,5.97268362]
[1768975978893,0.15000137,2992.7,2991.9,2.463]
[1768975979794,0.15000137,2992.7,2991.9,0.00259623]
[1768975980095,0.15000137,2992.7,2992.0,2.464]
[1768975981003,0.15000137,2992.7,2992.1,2.464]
[1768975982403,0.15000137,2992.7,2991.9,0.00259623]
[1768975982805,0.15000137,2992.7,2992.0,2.463]
[1768975984201,0.15000137,2992.7,2991.9,0.00259623]
[1768975984405,0.15000137,2992.7,2992.0,2.463]
[1768975987208,0.00273057,2992.9,2992.1,1.07304823]
[1768975988106,0.00273057,2992.9,2992.0,2.463]
[1768975988308,0.00273057,2992.9,2992.1,1.07304823]
[1768975988506,0.00273057,2992.9,2992.3,1.07304823]
[1768975989115,0.00273057,2992.9,2992.1,1.07304823]
[1768975989917,0.00273057,2992.9,2992.3,1.07304823]
[1768975990608,0.00273057,2992.9,2992.5,1.07304823]
[1768975990809,0.15000137,2993.5,2992.5,1.07304823]
[1768975991008,0.15000137,2993.5,2992.3,1.07304823]
[1768975991808,0.15312053,2993.5,2992.3,1.07304823]
[1768976006927,1.21409825,2993.4,2992.1,7.39579614]
[1768976007123,1.21409825,2993.4,2992.1,4.41804823]
[1768976008430,0.14105002,2993.1,2992.2,2.456]
[1768976011134,0.14105002,2993.1,2991.9,0.00259623]
[1768976011336,0.14105002,2993.1,2992.0,2.455]
[1768976011535,0.14105002,2993.1,2992.1,2.455]
[1768976018042,0.00311916,2993.5,2992.1,2.455]
[1768976018043,0.14416918,2993.5,2992.1,2.455]
[1768976018942,0.14416918,2993.5,2992.1,5.43274791]
[1768976021543,0.14416918,2993.5,2992.2,2.97774791]
[1768976023345,0.14416918,2993.5,2992.3,2.97774791]
[1768976028150,0.14416918,2993.5,2992.2,2.97774791]
[1768976028650,0.14416918,2993.5,2992.1,8.77774791]
[1768976029352,0.14416918,2993.5,2992.1,2.97774791]
[1768976029548,0.14416918,2993.5,2992.2,5.795]
[1768976034248,0.14416918,2993.5,2992.3,2.451]
[1768976043363,0.14416918,2993.5,2992.4,2.97774791]
[1768976046863,0.14055482,2993.4,2992.4,2.97774791]
[1768976047162,0.14055482,2993.4,2992.2,2.451]
[1768976053470,0.14055482,2993.4,2992.2,2.451]
[1768976056866,0.14055482,2993.4,2992.2,5.42874791]
[1768976064376,0.14055482,2993.4,2992.2,2.97774791]
[1768976064679,0.1472395,2993.3,2992.3,2.45]
[1768976065080,0.1472395,2993.3,2991.9,0.00259623]
[1768976065375,0.1472395,2993.3,2992.0,5.793]
[1768976067979,0.1472395,2993.3,2991.9,0.00259623]
[1768976068179,0.1472395,2993.3,2992.0,2.449]
[1768976068481,0.1472395,2993.2,2992.0,2.449]
[1768976070986,1.22072155,2993.1,2992.0,2.449]
[1768976071983,0.1472395,2992.7,2991.9,0.00259623]
[1768976072188,1.07348205,2992.6,2991.9,0.00259623]
[1768976072389,1.22072155,2992.8,2991.9,0.00259623]
[1768976072790,0.1472395,2992.7,2991.9,0.00259623]
[1768976078797,0.1472395,2993.1,2991.9,0.00259623]
[1768976085505,0.1420104,2992.9,2991.9,0.00259623]
[1768976085696,0.1420104,2992.7,2991.9,2.44659623]
[1768976090796,0.1420104,2992.7,2991.9,0.00259623]
[1768976091003,0.1420104,2992.7,2991.9,2.44559623]
[1768976091211,0.13663881,2993.7,2992.5,1.07348205]
[1768976091403,0.13663881,2993.7,2992.7,1.07348205]
[1768976091702,0.13663881,2993.5,2992.3,1.07348205]
[1768976091903,0.13663881,2993.1,2992.2,2.254]
[1768976092100,0.13663881,2993.1,2991.9,4.42107828]
[1768976092101,0.13663881,2993.1,2991.9,7.39882619]
[1768976092302,0.13663881,2993.1,2991.9,4.05382619]
[1768976092501,0.14057135,2993.1,2992.0,2.443]
[1768976093208,0.14057135,2993.1,2991.9,1.07607828]
[1768976093507,0.13663881,2992.9,2992.0,2.443]
[1768976093705,0.13663881,2992.9,2991.9,0.00259623]
[1768976093902,0.13663881,2992.9,2992.0,2.443]
[1768976097810,0.13663881,2992.9,2992.1,2.97774791]
[1768976099206,1.21012086,2992.8,2992.1,2.97774791]
[1768976099412,0.13663881,2992.5,2992.1,2.97774791]
[1768976099613,0.13663881,2992.5,2992.0,2.442]
[1768976101113,0.13663881,2992.5,2992.0,2.443]
[1768976101514,0.13663881,2992.5,2991.9,0.00259623]
[1768976101713,0.13663881,2992.5,2992.0,2.442]
[1768976102015,0.13663881,2992.3,2991.9,0.00259623]
[1768976102221,1.07348205,2992.0,2991.3,2.442]
[1768976102610,1.21012086,2992.0,2991.3,2.442]
[1768976103113,1.21012086,2992.0,2991.3,0.00433187]
[1768976103414,1.21012086,2992.0,2991.3,2.44733187]
[1768976104522,0.13663881,2992.0,2991.3,2.44733187]
[1768976106915,1.07348205,2991.6,2990.8,2.97774791]
[1768976107120,0.13663881,2991.7,2990.9,2.442]
[1768976107615,1.07348205,2991.4,2990.6,0.799]
[1768976107920,1.07348205,2991.6,2991.0,2.442]
[1768976108118,1.07348205,2991.6,2991.0,2.44504676]
[1768976109522,0.13663881,2991.5,2991.0,0.00112679]
[1768976109719,0.13663881,2991.3,2990.8,2.442]
[1768976110720,0.13663881,2991.3,2990.8,0.00291994]
[1768976111020,1.07348205,2991.6,2990.8,0.00291994]
[1768976111222,0.13663881,2991.7,2990.9,1.07348205]
[1768976111422,0.13663881,2992.0,2990.8,0.00291994]
[1768976115929,0.14268578,2991.6,2990.8,0.00291994]
[1768976116128,0.14268578,2991.6,2990.8,2.44291994]
[1768976119931,0.14268578,2991.6,2990.8,0.00291994]
[1768976143047,0.14268578,2991.4,2990.3,2.434]
[1768976143946,0.14268578,2991.4,2990.3,2.43786772]
[1768976148744,0.13740004,2991.3,2990.3,0.00386772]
[1768976149043,0.13740004,2991.1,2990.3,0.00386772]
[1768976149444,0.13740004,2991.1,2989.9,2.432]
[1768976149846,0.13740004,2990.9,2989.6,2.97774791]
[1768976150045,0.13740004,2990.8,2989.5,2.432]
[1768976150462,0.14006328,2990.8,2989.5,2.43470951]
[1768976155250,0.14006328,2990.8,2989.5,0.00270951]
[1768976155450,0.14006328,2990.8,2989.6,2.431]
[1768976157452,0.14006328,2990.8,2989.5,0.00270951]
[1768976157658,0.14006328,2990.8,2989.6,2.431]
[1768976158858,0.14006328,2990.8,2989.6,5.40874791]
[1768976159253,0.14006328,2990.8,2989.7,2.97774791]
[1768976160763,0.00266324,2990.8,2989.9,2.97774791]
[1768976161555,0.00266324,2990.8,2990.0,0.16739]
[1768976161758,0.13740004,2991.9,2990.1,1.07456049]
[1768976162363,0.13740004,2991.9,2990.1,4.0523084]
[1768976162660,0.13988376,2991.9,2990.1,4.0523084]
[1768976168260,0.13988376,2991.9,2990.2,2.97774791]
[1768976171967,0.13740004,2991.7,2990.3,2.43]
[1768976175764,0.13740004,2991.7,2990.4,3.347]
[1768976181862,0.13740004,2991.7,2990.5,2.97774791]
[1768976183471,0.13740004,2991.7,2990.6,1.07456049]
[1768976183971,0.13740004,2991.7,2990.6,4.0523084]
[1768976184670,0.13740004,2991.7,2990.7,2.97774791]
[1768976185268,0.00248372,2991.9,2990.7,2.97774791]
[1768976185476,0.00248372,2991.9,2991.0,1.07456049]
[1768976185665,0.00248372,2991.9,2991.1,2.426]
[1768976185860,0.1373459,2992.5,2991.1,5.40374791]
[1768976186066,0.1373459,2993.3,2991.4,2.97774791]
[1768976186271,0.1373459,2993.1,2991.3,4.0523084]
[1768976186573,0.1373459,2993.1,2991.5,2.97774791]
[1768976186773,0.14160003,2993.1,2991.6,3.346]
[1768976186972,0.14160003,2993.1,2991.6,3.34895034]
[1768976187473,0.14160003,2993.1,2991.6,4.42351083]
[1768976188675,0.14160003,2993.1,2991.7,2.97774791]
[1768976189177,0.14160003,2993.1,2991.6,7.40125874]
[1768976189481,0.14160003,2993.1,2991.7,2.97774791]
[1768976190373,0.14160003,2993.1,2991.6,7.40125874]
[1768976190871,0.14160003,2993.1,2991.6,4.42351083]
[1768976192880,0.1373459,2993.0,2991.9,1.07355586]
[1768976193176,0.1373459,2993.0,2992.0,2.425]
[1768976194480,0.1373459,2992.8,2992.0,2.425]
[1768976194674,0.1373459,2992.8,2992.1,2.424]
[1768976200272,0.1373459,2992.8,2991.7,1.07355586]
[1768976200484,0.1373459,2992.8,2991.8,4.173]
[1768976201185,0.1373459,2992.8,2991.7,1.07355586]
[1768976201386,0.1373459,2992.8,2991.9,2.422]
[1768976202787,0.1373459,2992.8,2991.7,1.07355586]
[1768976202987,0.1373459,2992.8,2991.8,4.312]
[1768976203290,0.1373459,2992.8,2991.9,2.421]
[1768976208690,0.1373459,2992.8,2992.0,2.42]
[1768976216099,0.14623242,2992.4,2991.6,0.00295034]
[1768976216299,0.14623242,2992.4,2991.7,2.418]
[1768976216897,0.14623242,2992.4,2991.6,0.00295034]
[1768976217208,0.14623242,2992.4,2991.7,2.418]
[1768976217604,0.16726,2992.5,2991.7,2.418]
[1768976219698,0.16726,2992.5,2991.8,2.417]
[1768976231502,0.14623242,2992.4,2991.9,2.416]
[1768976236911,0.14006186,2992.2,2991.6,0.00295034]
[1768976237208,0.14006186,2992.2,2991.6,2.41895034]
[1768976237410,0.16727,2992.3,2991.6,3.4925062]
[1768976239017,0.16727,2992.3,2991.6,2.41895034]
[1768976242821,0.30733186,2992.3,2991.6,0.00295034]
[1768976243022,0.30733186,2992.3,2991.6,2.41695034]
[1768976244022,0.14006186,2992.2,2991.6,0.00295034]
[1768976245222,0.14006186,2992.0,2991.6,0.00295034]
[1768976245722,0.14006186,2992.0,2991.3,2.413]
[1768976246822,0.14006186,2992.0,2991.3,2.41576444]
[1768976247528,0.14006186,2992.0,2991.3,0.00276444]
[1768976247714,0.14006186,2992.0,2991.3,2.41576444]
[1768976250727,0.14006186,2992.0,2991.3,0.00276444]
[1768976251623,0.14006186,2991.8,2991.3,0.00276444]
[1768976251826,0.14006186,2991.4,2990.6,2.97774791]
[1768976252130,0.14006186,2991.4,2990.7,2.412]
[1768976252835,0.14006186,2991.4,2990.7,2.41492213]
[1768976254328,0.14006186,2991.4,2990.7,0.00292213]
[1768976262738,0.14006186,2991.8,2990.7,0.00292213]
[1768976263740,0.14006186,2991.8,2990.8,2.409]
[1768976263741,0.14006186,2991.7,2990.8,2.409]
[1768976266637,0.13713156,2992.1,2990.9,2.408]
[1768976267546,0.16726,2992.4,2991.0,4.05240413]
[1768976267845,0.13713156,2992.9,2991.3,1.07465622]
[1768976268142,0.13713156,2992.9,2991.3,4.05240413]
[1768976269644,0.13713156,2992.9,2991.4,2.97774791]
[1768976270547,0.13713156,2992.8,2991.4,2.97774791]
[1768976272750,0.13713156,2992.6,2991.4,2.97774791]
[1768976272943,0.13713156,2992.6,2991.5,5.752]
[1768976276852,0.13713156,2992.6,2991.6,2.406]
[1768976277550,0.16724,2992.7,2991.6,2.406]
[1768976278346,0.13713156,2993.0,2991.6,2.406]
[1768976278652,0.13713156,2993.0,2991.7,2.406]
[1768976278858,0.13713156,2993.0,2991.7,5.752]
[1768976281146,0.13713156,2993.0,2991.8,5.751]
[1768976282948,0.13713156,2993.0,2991.7,2.97774791]
[1768976283253,0.13713156,2993.0,2991.9,2.406]
[1768976284554,0.13713156,2993.0,2991.5,2.97774791]
[1768976284755,0.13713156,2993.0,2991.6,8.72774791]
[1768976285253,0.13713156,2993.0,2991.6,5.75]
[1768976285950,0.13713156,2993.0,2991.6,8.72774791]
[1768976287056,0.13713156,2993.0,2991.6,2.97774791]
[1768976287348,0.13713156,2993.0,2991.7,5.75]
[1768976288656,0.13713156,2992.9,2991.3,4.34819853]
[1768976288954,0.13713156,2992.9,2991.4,2.405]
[1768976290051,0.13713156,2992.9,2991.5,1.07465622]
[1768976290657,0.17147413,2993.1,2991.5,1.07465622]
[1768976291262,0.30860569,2993.1,2991.5,1.07465622]
[1768976295751,0.1396718,2993.0,2991.5,1.07465622]
[1768976296160,0.1396718,2993.0,2991.5,4.05240413]
[1768976298164,0.1396718,2993.0,2991.6,2.97774791]
[1768976298865,0.1396718,2993.0,2991.8,2.97774791]
[1768976299969,0.1396718,2993.0,2991.9,2.97774791]
[1768976306474,0.1396718,2993.0,2992.0,2.97774791]
[1768976306673,0.1396718,2993.0,2992.1,2.405]
[1768976307777,0.1396718,2993.0,2992.1,5.38274791]
[1768976309679,0.00425413,2993.1,2992.1,5.38274791]
[1768976309872,0.00425413,2993.1,2992.2,4.05240413]
[1768976310178,0.00425413,2993.1,2992.3,2.97774791]
[1768976311381,0.00425413,2993.1,2992.2,2.97774791]
[1768976312882,0.00425413,2993.1,2992.4,1.07310343]
[1768976317894,0.1672,2993.5,2992.8,1.07310343]
[1768976318194,0.1672,2993.5,2992.9,2.409]
[1768976318681,0.1396718,2993.7,2992.9,2.409]
[1768976319082,0.14322216,2993.7,2992.9,2.41208201]
[1768976321694,0.1396718,2993.6,2992.9,0.00308201]
[1768976321898,0.1396718,2993.4,2992.9,0.00308201]
[1768976327592,0.1497232,2993.2,2992.9,0.00308201]
[1768976327797,0.1497232,2993.0,2992.0,2.97774791]
[1768976327998,0.1497232,2993.0,2992.1,2.408]
[1768976328700,0.1497232,2993.0,2992.1,2.41211299]
[1768976328900,0.1497232,2993.0,2992.2,2.408]
[1768976330297,0.1497232,2993.0,2992.1,0.00411299]
[1768976330504,0.1497232,2992.8,2992.1,1.99411299]
[1768976332308,0.1497232,2992.8,2992.1,0.00411299]
[1768976335102,0.1497232,2992.4,2991.5,2.97774791]
[1768976335295,0.1497232,2992.3,2991.5,2.407]
[1768976335699,0.1497232,2992.3,2991.5,2.406]
[1768976336406,0.1497232,2992.3,2991.5,2.40839203]
[1768976338909,0.1497232,2992.3,2991.5,0.00239203]
[1768976339109,0.1497232,2992.3,2991.5,2.40839203]
[1768976343510,0.1497232,2992.3,2991.5,0.00239203]
[1768976343812,0.1497232,2992.3,2991.5,2.40739203]
[1768976345712,0.1497232,2992.3,2991.5,0.00239203]
[1768976348521,0.1497232,2992.3,2991.5,1.07549546]
[1768976352325,0.1497232,2992.3,2991.5,0.00239203]
[1768976358329,0.1497232,2992.3,2991.5,2.40639203]
[1768976363136,0.1497232,2992.3,2991.5,0.00239203]
[1768976363435,0.1497232,2992.3,2991.6,2.406]
[1768976365636,0.1497232,2992.3,2991.5,2.40939203]
[1768976367337,0.1497232,2992.3,2991.5,0.00239203]
[1768976367538,0.1497232,2992.3,2991.5,2.40839203]
[1768976368936,0.13625017,2992.2,2991.5,2.40839203]
[1768976371243,0.87200544,2993.3,2991.5,2.40839203]
[1768976371447,0.16725,2992.6,2991.5,2.40839203]
[1768976371642,1.07310343,2992.6,2991.5,2.40839203]
[1768976372147,0.16726,2992.5,2991.5,5.38613994]
[1768976373447,0.16726,2992.5,2991.5,2.98013994]
[1768976373647,0.16726,2992.5,2991.5,5.38713994]
[1768976379458,0.16727,2992.3,2991.5,5.38713994]
[1768976379656,0.16727,2992.3,2991.5,2.40939203]
[1768976382460,0.16727,2992.3,2991.5,0.00239203]
[1768976382662,0.16727,2992.3,2991.5,2.41139203]
[1768976393667,0.16727,2992.3,2991.5,0.00239203]
[1768976393871,0.16727,2992.3,2991.5,2.41039203]
[1768976394471,0.16727,2992.3,2991.5,0.00239203]
[1768976394771,0.16727,2992.3,2991.5,2.41039203]
[1768976395472,0.16727,2992.3,2991.5,0.00239203]
[1768976395660,0.16727,2992.3,2991.5,2.41139203]
[1768976396069,0.16727,2992.3,2991.5,0.00239203]
[1768976396271,0.16727,2992.3,2991.5,2.41139203]
[1768976401871,0.16727,2992.3,2991.5,5.38913994]
[1768976402173,0.87200544,2993.3,2991.5,5.38913994]
[1768976402174,0.30918318,2992.9,2991.5,5.38913994]
[1768976402372,0.30918318,2992.9,2991.7,2.97774791]
[1768976403170,0.30918318,2992.9,2991.8,2.97774791]
[1768976404073,0.30918318,2992.9,2991.9,2.97774791]
[1768976405375,0.30918318,2992.9,2991.8,2.97774791]
[1768976408875,1.01394862,2993.3,2991.9,1.0738837]
[1768976409272,1.01394862,2993.3,2992.0,2.97774791]
[1768976411981,0.1672,2993.5,2992.3,1.0738837]
[1768976412177,0.1672,2993.5,2992.4,2.409]
[1768976413083,0.14194318,2994.1,2993.0,1.0738837]
[1768976413283,0.14194318,2994.1,2992.7,2.97774791]
[1768976413792,0.30909318,2994.5,2993.1,1.0738837]
[1768976414084,0.14515263,2994.5,2993.2,2.408]
[1768976417580,0.00320945,2994.5,2993.2,2.408]
[1768976418584,0.00320945,2994.5,2993.5,1.0738837]
[1768976418585,0.00207516,2994.5,2993.5,1.0738837]
[1768976418786,0.00207516,2994.5,2993.6,2.407]
[1768976418983,0.00207516,2994.5,2993.0,3.14496791]
[1768976419180,0.00207516,2994.5,2993.1,5.751]
[1768976419585,0.00207516,2994.5,2993.1,0.00310872]
[1768976419982,0.00207516,2994.5,2993.2,5.75]
[1768976420482,0.13833324,2994.5,2993.2,5.75]
[1768976420689,0.13833324,2994.5,2993.1,0.00310872]
[1768976420890,0.13833324,2994.5,2993.2,2.119]
[1768976422082,0.13833324,2994.5,2993.1,0.00310872]
[1768976422385,0.13833324,2994.5,2993.1,2.40910872]
[1768976428494,0.13625808,2994.1,2993.1,0.00310872]
[1768976430693,0.30342808,2994.1,2993.1,0.00310872]
[1768976431095,0.13625808,2994.0,2993.1,0.00310872]
[1768976433993,0.30342808,2994.0,2993.1,0.00310872]
[1768976434397,0.13625808,2993.9,2993.1,0.00310872]
[1768976436506,0.13625808,2994.3,2993.1,0.00310872]
[1768976436892,0.13625808,2994.1,2993.1,0.00310872]
[1768976442404,0.13625808,2993.7,2993.1,0.00310872]
[1768976442595,0.13625808,2993.5,2993.1,0.00310872]
[1768976442994,0.13625808,2993.5,2992.9,2.97774791]
[1768976443904,0.13625808,2993.5,2992.9,2.98170881]
[1768976444609,0.13625808,2993.5,2992.9,0.0039609]
[1768976447709,0.31063103,2993.9,2992.9,1.07664105]
[1768976447915,0.14345103,2993.8,2992.9,1.07664105]
[1768976452821,0.14345103,2993.8,2992.9,0.0039609]
[1768976459930,1.21613118,2993.8,2992.9,0.0039609]
[1768976460124,0.14345103,2993.7,2992.9,0.0039609]
[1768976460324,0.14345103,2993.7,2992.9,2.4039609]
[1768976461223,0.14345103,2994.1,2992.9,3.47664105]
[1768976461430,0.14345103,2994.1,2993.1,1.07268015]
[1768976462130,0.14345103,2994.1,2993.2,2.97774791]
[1768976464218,0.14345103,2994.4,2993.5,1.07268015]
[1768976465332,0.14345103,2994.4,2993.3,1.07268015]
[1768976465932,0.14345103,2994.4,2993.2,4.05042806]
[1768976467128,0.14345103,2994.2,2993.2,2.97774791]
[1768976467330,0.14345103,2994.0,2993.3,2.4]
[1768976474438,0.14345103,2994.0,2993.2,2.97774791]
[1768976474649,0.14345103,2994.0,2993.3,2.403]
[1768976474848,0.14345103,2994.0,2993.1,2.97774791]
[1768976475147,0.14345103,2994.0,2993.2,2.403]
[1768976476746,0.14345103,2994.0,2993.3,2.403]
[1768976480560,0.1404891,2993.8,2993.1,2.97774791]
[1768976480751,0.1404891,2993.6,2993.2,2.404]
[1768976483847,0.1404891,2993.3,2992.9,0.0039609]
[1768976484050,0.1404891,2993.3,2992.6,2.404]
[1768976484956,1.21316925,2993.2,2992.6,2.40659063]
[1768976485153,1.07268015,2993.0,2992.1,2.404]
[1768976485453,1.21316925,2993.0,2992.1,2.404]
[1768976486053,1.21316925,2993.0,2992.1,2.40747964]
[1768976486754,0.1404891,2993.0,2992.1,2.40747964]
[1768976499964,0.16722,2993.2,2992.1,2.40747964]
[1768976500570,0.1404891,2993.7,2992.1,5.38522755]
[1768976500766,0.3076791,2993.7,2992.1,5.38522755]
[1768976500960,0.1404891,2993.5,2992.1,5.38522755]
[1768976505365,0.1404891,2993.5,2992.1,2.40747964]
[1768976509668,0.1470615,2993.4,2992.1,0.00347964]
[1768976509876,0.1470615,2993.4,2992.2,2.403]
[1768976512274,0.1470615,2993.4,2992.2,5.38074791]
[1768976513473,0.1470615,2993.4,2992.3,2.97774791]
[1768976519972,0.1470615,2993.4,2992.4,2.97774791]
[1768976520170,0.1470615,2993.4,2992.5,2.97774791]
[1768976522071,0.1470615,2993.4,2992.2,4.18087853]
[1768976522072,0.1470615,2993.0,2992.2,4.18087853]
[1768976522378,0.1470615,2993.0,2992.1,0.00347964]
[1768976522567,0.1470615,2992.7,2991.5,5.745]
[1768976523568,0.1470615,2992.7,2991.5,5.74889716]
[1768976528378,0.3143115,2992.6,2991.5,5.74889716]
[1768976528578,0.1470615,2992.5,2991.5,5.74889716]
[1768976528775,0.1470615,2992.4,2991.5,0.00389716]
[1768976529082,0.3143315,2992.3,2991.5,0.00389716]
[1768976529266,0.1470615,2992.2,2991.5,0.00389716]
[1768976529678,0.1470615,2992.1,2991.4,2.401]
[1768976530678,0.1470615,2992.0,2991.4,2.40440926]
[1768976531675,0.1470615,2992.0,2991.4,0.00340926]